[Event "46th Roda Open 2019"]
[Site "La Roda"]
[Date "2019.04.18"]
[Round "3.5"]
[White "Gimenez Menchon, Cesar"]
[Black "Grigoryan, Karen H."]
[Result "0-1"]
[ECO "C55"]
[WhiteElo "2249"]
[BlackElo "2545"]
[Annotator "ChessBase"]
[PlyCount "106"]
[EventDate "2019.04.17"]
[EventType "swiss"]
[EventCountry "ESP"]
[SourceTitle "playchess.com"]
[Source "ChessBase"]
[SourceQuality "1"]
[TimeControl "5400+30"]

1. e4 {[%emt 0:00:00]} e5 {[%emt 0:00:12]} 2. Nf3 {[%emt 0:00:00]} Nc6 {[%emt 0:00:08]} 3. Bc4 {[%emt 0:01:36]} Nf6 {[%emt 0:00:16]} 4. d4 {[%emt 0:00:51]} exd4 {[%emt 0:00:33]} 5. e5 {[%emt 0:00:11]} d5 {[%emt 0:00:06]} 6. Bb5 {[%emt 0:00:05]} Ne4 {[%emt 0:00:09]} 7. Nxd4 {[%emt 0:00:07]} Bd7 {[%emt 0:00:06]} 8. Bxc6 {[%emt 0:00:09]} bxc6 {[%emt 0:00:06]} 9. Be3 {[%emt 0:02:52]} c5 {[%emt 0:09:24]} 10. Nb3 {[%emt 0:09:47]} d4 {[%emt 0:03:03]} 11. Bf4 {[%emt 0:04:46]} Ng5 {[%emt 0:02:49]} 12. O-O {[%emt 0:02:49]} Ne6 {[%emt 0:01:41]} 13. Bg3 {[%emt 0:03:55]} h5 {[%emt 0:01:58]} 14. h3 {[%emt 0:00:29]} h4 {[%emt 0:00:25]} 15. Bh2 {[%emt 0:00:04]} Bb5 {[%emt 0:04:00]} 16. Re1 {[%emt 0:03:02]} c4 {[%emt 0:01:00]} 17. a4 {[%emt 0:05:10]} Bc6 {[%emt 0:00:56]} 18. N3d2 {[%emt 0:09:11]} Qd5 {[%emt 0:04:24]} 19. f3 {[%emt 0:09:40]} Rb8 {[%emt 0:04:37]} 20. b3 {[%emt 0:11:52]} d3 {[%emt 0:07:24]} 21. Kh1 {[%emt 0:04:40]} dxc2 {[%emt 0:01:36]} 22. Qxc2 {[%emt 0:00:07]} cxb3 {[%emt 0:00:43]} 23. Qb2 {[%emt 0:07:53]} Bb4 {[%emt 0:10:52]} 24. Nc3 {[%emt 0:02:37]} Qd3 {[%emt 0:02:13]} 25. Rec1 {[%emt 0:02:01]} Nd4 {[%emt 0:03:34]} 26. Nxb3 {[%emt 0:04:04]} Nxb3 {[%emt 0:12:19]} 27. Qxb3 {[%emt 0:00:09]} Bxf3 {[%emt 0:00:57]} 28. Qc2 {[%emt 0:04:48]} Qxc3 {[%emt 0:09:53]} 29. Qxc3 {[%emt 0:00:27]} Bxc3 {[%emt 0:00:06]} 30. Rxc3 {[%emt 0:00:36]} Bd5 {[%emt 0:00:22]} 31. Rxc7 {[%emt 0:00:38]} Rb2 {[%emt 0:02:02]} 32. Rd1 {[%emt 0:08:56]} Bxg2+ {[%emt 0:00:50]} 33. Kg1 {[%emt 0:00:04]} Bxh3 {[%emt 0:00:36]} 34. e6 {[%emt 0:02:18]} Rg2+ {[%emt 0:11:46]} 35. Kh1 {[%emt 0:00:06]} Rxh2+ {[%emt 0:00:04]} 36. Kxh2 {[%emt 0:00:05]} Bxe6 {[%emt 0:00:04]} 37. Rxa7 {[%emt 0:01:05]} O-O {[%emt 0:00:05]} 38. Rd4 {[%emt 0:00:49]} h3 {[%emt 0:00:06]} 39. Ra5 {[%emt 0:00:37]} Rc8 {[%emt 0:00:17]} 40. Rd2 {[%emt 0:00:24]} Rc4 {[%emt 0:00:32]} 41. Ra8+ {[%emt 0:00:46]} Kh7 {[%emt 0:00:04]} 42. a5 {[%emt 0:00:15]} Ra4 {[%emt 0:00:26]} 43. a6 {[%emt 0:00:33]} g5 {[%emt 0:01:53]} 44. a7 {[%emt 0:00:15]} g4 {[%emt 0:00:09]} 45. Rdd8 {[%emt 0:00:51]} Kg6 {[%emt 0:00:30]} 46. Kg3 {[%emt 0:00:40]} Kf5 {[%emt 0:00:26]} 47. Rh8 {[%emt 0:00:33]} Ra3+ {[%emt 0:00:10]} 48. Kf2 {[%emt 0:00:20]} Kf4 {[%emt 0:01:09]} 49. Rh6 {[%emt 0:00:35]} g3+ {[%emt 0:00:40]} 50. Ke2 {[%emt 0:00:15]} Bg4+ 51. Kd2 {[%emt 0:00:05]} g2 {[%emt 0:00:32]} 52. Rf6+ {[%emt 0:01:10]} Kg3 {[%emt 0:00:15]} 53. Rg8 {[%emt 0:00:41]} Rxa7 {[%emt 0:00:37]} 0-1

[Event "46th Roda Open 2019"]
[Site "La Roda"]
[Date "2019.04.18"]
[Round "3.6"]
[White "Ibarra Jerez, Jose Carlos"]
[Black "Gavarrete, Nahun"]
[Result "1-0"]
[ECO "B67"]
[WhiteElo "2542"]
[BlackElo "2324"]
[Annotator "ChessBase"]
[PlyCount "57"]
[EventDate "2019.04.17"]
[EventType "swiss"]
[EventCountry "ESP"]
[SourceTitle "playchess.com"]
[Source "ChessBase"]
[SourceQuality "1"]
[TimeControl "5400+30"]

1. e4 {[%emt 0:00:00]} c5 {[%emt 0:00:00]} 2. Ne2 {[%emt 0:01:06]} Nc6 {[%emt 0:00:13]} 3. d4 {[%emt 0:01:34]} cxd4 {[%emt 0:00:10]} 4. Nxd4 {[%emt 0:00:08]} Nf6 {[%emt 0:00:10]} 5. Nc3 {[%emt 0:00:59]} d6 {[%emt 0:02:21]} 6. Bg5 {[%emt 0:02:01]} e6 {[%emt 0:00:47]} 7. Qd2 {[%emt 0:00:30]} a6 {[%emt 0:01:32]} 8. O-O-O {[%emt 0:01:40]} Bd7 {[%emt 0:00:33]} 9. f3 {[%emt 0:01:01]} Be7 {[%emt 0:00:36]} 10. h4 {[%emt 0:00:40]} h6 {[%emt 0:01:33]} 11. Be3 {[%emt 0:00:07]} h5 {[%emt 0:00:09]} 12. Bg5 {[%emt 0:02:02]} Qc7 {[%emt 0:09:34]} 13. Kb1 {[%emt 0:01:39]} Nxd4 {[%emt 0:00:18]} 14. Qxd4 {[%emt 0:00:12]} b5 {[%emt 0:00:18]} 15. Ne2 {[%emt 0:10:44]} a5 {[%emt 0:11:09]} 16. Ng3 {[%emt 0:05:22]} a4 {[%emt 0:18:11]} 17. Bd2 {[%emt 0:10:27]} a3 {[%emt 0:05:35]} 18. b3 {[%emt 0:00:59]} O-O {[%emt 0:05:42]} 19. Bb4 {[%emt 0:02:48]} Rfc8 {[%emt 0:00:17]} 20. Qd2 {[%emt 0:01:56]} Bc6 {[%emt 0:06:46]} 21. Rh3 {[%emt 0:06:25]} d5 {[%emt 0:00:41]} 22. Bxe7 {[%emt 0:01:35]} Qxe7 {[%emt 0:00:04]} 23. e5 {[%emt 0:02:12]} Nd7 {[%emt 0:00:18]} 24. Nxh5 {[%emt 0:04:29]} Nxe5 {[%emt 0:12:41]} 25. Qd4 {[%emt 0:04:53]} Qc7 {[%emt 0:00:10]} 26. f4 {[%emt 0:10:12]} Be8 {[%emt 0:00:15]} 27. Rc1 {[%emt 0:01:09]} f6 {[%emt 0:00:50]} 28. fxe5 {[%emt 0:00:41]} Bxh5 {[%emt 0:00:22]} 29. exf6 {[%emt 0:00:20]} 1-0

[Event "46th Roda Open 2019"]
[Site "La Roda"]
[Date "2019.04.18"]
[Round "3.7"]
[White "Lopez Quevedo, Eduardo"]
[Black "Maiorov, Nikita"]
[Result "1/2-1/2"]
[ECO "C95"]
[WhiteElo "2209"]
[BlackElo "2540"]
[Annotator "ChessBase"]
[PlyCount "113"]
[EventDate "2019.04.17"]
[EventType "swiss"]
[EventCountry "ESP"]
[SourceTitle "playchess.com"]
[Source "ChessBase"]
[SourceQuality "1"]
[TimeControl "5400+30"]

1. e4 {[%emt 0:00:00]} e5 {[%emt 0:04:48]} 2. Nf3 {[%emt 0:00:00]} Nc6 {[%emt 0:00:15]} 3. Bb5 {[%emt 0:00:10]} a6 {[%emt 0:00:05]} 4. Ba4 {[%emt 0:00:09]} Nf6 {[%emt 0:00:04]} 5. O-O {[%emt 0:00:11]} Be7 {[%emt 0:00:05]} 6. Re1 {[%emt 0:00:27]} b5 {[%emt 0:00:12]} 7. Bb3 {[%emt 0:00:10]} d6 {[%emt 0:00:03]} 8. c3 {[%emt 0:00:51]} O-O {[%emt 0:00:07]} 9. h3 {[%emt 0:00:56]} Nb8 {[%emt 0:00:07]} 10. d4 {[%emt 0:01:27]} Nbd7 {[%emt 0:00:05]} 11. Nbd2 {[%emt 0:01:09]} Bb7 {[%emt 0:00:13]} 12. Bc2 {[%emt 0:00:29]} Re8 {[%emt 0:00:06]} 13. Nf1 {[%emt 0:01:17]} Bf8 {[%emt 0:00:08]} 14. Ng3 {[%emt 0:00:20]} g6 {[%emt 0:00:08]} 15. Bg5 {[%emt 0:01:10]} Bg7 {[%emt 0:04:48]} 16. a4 {[%emt 0:10:43]} Qe7 {[%emt 0:02:05]} 17. Bd3 {[%emt 0:04:01]} c6 {[%emt 0:00:07]} 18. Qc1 {[%emt 0:08:48]} Qf8 {[%emt 0:00:41]} 19. dxe5 {[%emt 0:07:52]} dxe5 {[%emt 0:00:28]} 20. b4 {[%emt 0:01:03]} Nb6 {[%emt 0:11:26]} 21. Be3 {[%emt 0:07:06]} Nfd7 {[%emt 0:00:46]} 22. a5 {[%emt 0:08:13]} Nc8 {[%emt 0:00:50]} 23. c4 {[%emt 0:02:58]} Rd8 {[%emt 0:11:10]} 24. c5 {[%emt 0:09:49]} Ne7 {[%emt 0:04:53]} 25. Ra3 {[%emt 0:04:16]} Qe8 {[%emt 0:01:14]} 26. Bb1 {[%emt 0:02:18]} f6 {[%emt 0:04:00]} 27. Ba2+ {[%emt 0:02:42]} Kh8 {[%emt 0:00:04]} 28. Rd3 {[%emt 0:00:42]} Nf8 {[%emt 0:00:13]} 29. Red1 {[%emt 0:01:17]} Rxd3 {[%emt 0:02:34]} 30. Rxd3 {[%emt 0:00:05]} Bc8 {[%emt 0:01:39]} 31. Rd6 {[%emt 0:01:54]} Ng8 {[%emt 0:01:38]} 32. Qd2 {[%emt 0:01:52]} Be6 {[%emt 0:02:26]} 33. Bxe6 {[%emt 0:01:43]} Nxe6 {[%emt 0:00:04]} 34. Qa2 {[%emt 0:01:47]} Nc7 {[%emt 0:01:03]} 35. Qd2 {[%emt 0:00:13]} Bf8 {[%emt 0:01:43]} 36. Rd7 {[%emt 0:02:45]} Ne6 {[%emt 0:00:20]} 37. Rb7 {[%emt 0:00:48]} Rd8 {[%emt 0:01:11]} 38. Qb2 {[%emt 0:00:47]} Rd1+ {[%emt 0:08:43]} 39. Kh2 {[%emt 0:00:07]} Qc8 {[%emt 0:00:35]} 40. Rb6 {[%emt 0:01:58]} Rd8 {[%emt 0:02:09]} 41. Bd2 {[%emt 0:01:24]} Bg7 {[%emt 0:03:00]} 42. Bc3 {[%emt 0:00:49]} Ne7 {[%emt 0:03:24]} 43. Nf1 {[%emt 0:00:59]} Nc7 {[%emt 0:03:26]} 44. Nxe5 {[%emt 0:02:41]} fxe5 {[%emt 0:00:46]} 45. Bxe5 {[%emt 0:00:03]} Ne8 {[%emt 0:01:10]} 46. Ne3 {[%emt 0:02:50]} Qe6 {[%emt 0:00:58]} 47. Bxg7+ {[%emt 0:00:45]} Nxg7 {[%emt 0:00:05]} 48. Rxa6 {[%emt 0:00:54]} Nc8 {[%emt 0:01:42]} 49. Ra8 {[%emt 0:01:13]} Qxe4 {[%emt 0:06:02]} 50. Ng4 {[%emt 0:03:00]} Qf4+ {[%emt 0:04:11]} 51. g3 {[%emt 0:00:28]} Qf7 {[%emt 0:03:19]} 52. a6 {[%emt 0:02:12]} Rf8 {[%emt 0:01:47]} 53. Rb8 {[%emt 0:00:51]} h5 {[%emt 0:01:02]} 54. Rb7 {[%emt 0:00:16]} hxg4 {[%emt 0:01:42]} 55. Rxf7 {[%emt 0:00:21]} Rxf7 {[%emt 0:00:03]} 56. Qd4 {[%emt 0:01:27]} Kh7 {[%emt 0:01:53]} 57. Qxg4 {[%emt 0:00:41]} 1/2-1/2

[Event "46th Roda Open 2019"]
[Site "La Roda"]
[Date "2019.04.18"]
[Round "3.8"]
[White "Sivuk, Vitaly"]
[Black "Cabezas Ayala, Ivan"]
[Result "1-0"]
[ECO "E94"]
[WhiteElo "2523"]
[BlackElo "2312"]
[Annotator "ChessBase"]
[PlyCount "61"]
[EventDate "2019.04.17"]
[EventType "swiss"]
[EventCountry "ESP"]
[SourceTitle "playchess.com"]
[Source "ChessBase"]
[SourceQuality "1"]
[TimeControl "5400+30"]

1. d4 {[%emt 0:00:00]} Nf6 {[%emt 0:00:00]} 2. c4 {[%emt 0:00:00]} g6 {[%emt 0:00:00]} 3. Nc3 {[%emt 0:00:00]} Bg7 {[%emt 0:00:00]} 4. e4 {[%emt 0:00:03]} d6 {[%emt 0:00:00]} 5. Nf3 {[%emt 0:00:08]} O-O 6. Be2 e5 {[%emt 0:01:30]} 7. O-O {[%emt 0:00:39]} Na6 {[%emt 0:01:01]} 8. Be3 {[%emt 0:00:20]} Ng4 {[%emt 0:00:56]} 9. Bg5 {[%emt 0:00:09]} Qe8 {[%emt 0:01:08]} 10. Re1 {[%emt 0:00:30]} exd4 {[%emt 0:04:17]} 11. Nxd4 {[%emt 0:00:05]} Qe5 {[%emt 0:00:57]} 12. Nf3 {[%emt 0:00:08]} Qc5 {[%emt 0:00:14]} 13. Bh4 {[%emt 0:00:05]} Be6 {[%emt 0:02:25]} 14. Rc1 {[%emt 0:00:07]} Bh6 {[%emt 0:11:31]} 15. h3 {[%emt 0:16:15]} Ne5 {[%emt 0:02:04]} 16. Bf6 {[%emt 0:02:30]} Nxf3+ {[%emt 0:01:11]} 17. Bxf3 {[%emt 0:01:05]} Bg7 {[%emt 0:02:17]} 18. e5 {[%emt 0:09:42]} dxe5 {[%emt 0:03:15]} 19. Rxe5 {[%emt 0:00:48]} Qd6 {[%emt 0:12:35]} 20. Bxg7 {[%emt 0:04:17]} Kxg7 {[%emt 0:00:45]} 21. Qxd6 {[%emt 0:00:17]} cxd6 {[%emt 0:00:03]} 22. Re3 {[%emt 0:00:56]} Nc5 {[%emt 0:05:06]} 23. b4 {[%emt 0:02:45]} Nd7 {[%emt 0:00:12]} 24. Nb5 {[%emt 0:00:45]} a5 {[%emt 0:04:12]} 25. Bxb7 {[%emt 0:16:36]} Rab8 {[%emt 0:03:32]} 26. Nxd6 {[%emt 0:01:14]} axb4 {[%emt 0:00:05]} 27. Rxe6 {[%emt 0:03:13]} fxe6 {[%emt 0:00:45]} 28. c5 {[%emt 0:00:04]} Nxc5 {[%emt 0:03:43]} 29. Rxc5 {[%emt 0:00:09]} Rbd8 {[%emt 0:00:45]} 30. Ne4 {[%emt 0:04:42]} Rf7 31. Bc8 {[%emt 0:05:41]} 1-0

[Event "46th Roda Open 2019"]
[Site "La Roda"]
[Date "2019.04.19"]
[Round "4.4"]
[White "Grigoryan, Karen H."]
[Black "Martinez Reyes, Pedro Ramon"]
[Result "0-1"]
[ECO "D02"]
[WhiteElo "2545"]
[BlackElo "2404"]
[Annotator "RC"]
[PlyCount "116"]
[EventDate "2019.04.17"]
[EventType "swiss"]
[EventCountry "ESP"]
[SourceTitle "playchess.com"]
[Source "ChessBase"]
[SourceQuality "1"]
[TimeControl "5400+30"]

1. d4 {[%emt 0:00:07]} d5 {[%emt 0:00:00]} 2. Nf3 {[%emt 0:00:23]} Nf6 {[%emt 0:00:00]} 3. Bf4 {[%emt 0:00:14]} c5 {[%emt 0:00:37]} 4. e3 {[%emt 0:01:29]} Nc6 {[%emt 0:00:07]} 5. c3 {[%emt 0:00:45]} Qb6 {[%emt 0:00:06]} 6. Qb3 {[%emt 0:00:33]} c4 {[%emt 0:00:03]} 7. Qc2 {[%emt 0:00:10]} Bf5 {[%emt 0:00:10]} 8. Qc1 {[%emt 0:00:07]} Nh5 {[%emt 0:00:07]} 9. Bg5 {[%emt 0:01:52]} f6 {[%emt 0:00:08]} 10. Bh4 {[%emt 0:00:19]} g5 {[%emt 0:00:11]} 11. Bg3 {[%emt 0:00:11]} Bg7 {[%emt 0:13:18]} 12. Nbd2 {[%emt 0:05:24]} O-O {[%emt 0:06:58]} 13. e4 {[%emt 0:04:34]} dxe4 {[%emt 0:00:45]} 14. Nxc4 {[%emt 0:00:48]} Qd8 {[%emt 0:00:21]} 15. Nfd2 {[%emt 0:00:21]} Bg6 {[%emt 0:03:11]} 16. Be2 {[%emt 0:18:49]} f5 {[%emt 0:10:58]} 17. Qd1 {[%emt 0:00:51]} Nf6 {[%emt 0:00:01]} 18. Be5 {[%emt 0:02:19]} b5 {[%emt 0:01:01]} 19. Qb3 {[%emt 0:05:10]} Qd5 {[%emt 0:13:25]} 20. Bxf6 {[%emt 0:02:12]} Bxf6 {[%emt 0:01:27]} 21. Ne3 {[%emt 0:00:17]} Qxb3 {[%emt 0:00:05]} 22. Nxb3 {[%emt 0:01:01]} a6 {[%emt 0:02:16]} 23. Nd5 {[%emt 0:03:29]} Bg7 {[%emt 0:00:59]} 24. Nc7 {[%emt 0:06:39]} Ra7 {[%emt 0:00:22]} 25. Ne6 {[%emt 0:00:36]} Rf6 {[%emt 0:00:13]} 26. Nxg5 {[%emt 0:01:39]} h6 {[%emt 0:00:42]} 27. Nh3 {[%emt 0:00:09]} f4 {[%emt 0:00:01]} 28. g3 {[%emt 0:06:02]} f3 {[%emt 0:01:09]} 29. Bf1 {[%emt 0:00:13]} e5 {[%emt 0:01:10]} 30. dxe5 {[%emt 0:00:40]} Nxe5 {[%emt 0:00:01]} 31. Nf4 {[%emt 0:01:36]} Bf7 {[%emt 0:13:04]} 32. Bh3 {[%emt 0:11:54]} Rxf4 {[%emt 0:00:15]} 33. gxf4 {[%emt 0:00:06]} Nd3+ {[%emt 0:00:06]} 34. Kf1 {[%emt 0:01:30]} Nxf4 {[%emt 0:01:45]} 35. Bf5 {[%emt 0:02:33]} Bc4+ {[%emt 0:00:33]} 36. Ke1 {[%emt 0:00:09]} Rf7 {[%emt 0:01:57]} 37. Bxe4 {[%emt 0:05:25]} Re7 {[%emt 0:02:07]} 38. Nc5 {[%emt 0:01:01]} Nd3+ {[%emt 0:01:56]} 39. Nxd3 {[%emt 0:06:17]} Rxe4+ {[%emt 0:00:15]} 40. Kd1 {[%emt 0:00:06]} Bxd3 {[%emt 0:00:05]} 41. Kd2 {[%emt 0:00:07]} Be2 {[%emt 0:00:56]} 42. Rhg1 {[%emt 0:00:19]} Kf7 {[%emt 0:00:02]} 43. Rg3 {[%emt 0:00:21]} Be5 {[%emt 0:00:13]} 44. Rh3 {[%emt 0:00:18]} h5 {[%emt 0:02:08]} 45. Rxh5 {[%emt 0:01:43]} Bf4+ {[%emt 0:00:26]} 46. Kc2 {[%emt 0:00:06]} Bc4 {[%emt 0:01:07]} 47. Rd1 {[%emt 0:06:54]} Re2+ {[%emt 0:00:08]} 48. Kb1 {[%emt 0:00:04]} Kg6 {[%emt 0:00:12]} 49. Rh4 {[%emt 0:04:00]} Kg5 {[%emt 0:00:57]} 50. Rh8 {[%emt 0:01:19]} Rxf2 {[%emt 0:00:18]} 51. h4+ {[%emt 0:00:08]} Kg4 {[%emt 0:00:47]} 52. h5 {[%emt 0:00:52]} Rf1 {[%emt 0:00:30]} 53. Rxf1 {[%emt 0:00:08]} Bxf1 {[%emt 0:00:04]} 54. Rg8+ {[%emt 0:00:18]} Kxh5 {[%emt 0:00:22]} 55. Rf8 {[%emt 0:00:20]} Bd3+ {[%emt 0:00:10]} 56. Ka1 {[%emt 0:00:07]} Kg4 {[%emt 0:00:35]} 57. Rg8+ {[%emt 0:00:06]} Bg5 {[%emt 0:00:31]} 58. Rf8 {[%emt 0:00:07]} Bf5 {[%emt 0:00:10]} 0-1

[Event "46th Roda Open 2019"]
[Site "La Roda"]
[Date "2019.04.19"]
[Round "5.6"]
[White "Popov, Ivan"]
[Black "Rodriguez Melendez, Juan Humbert"]
[Result "1-0"]
[ECO "B90"]
[WhiteElo "2585"]
[BlackElo "2213"]
[Annotator "RC"]
[PlyCount "59"]
[EventDate "2019.04.17"]
[EventType "swiss"]
[EventCountry "ESP"]
[SourceTitle "playchess.com"]
[Source "ChessBase"]
[SourceQuality "1"]
[TimeControl "5400+30"]

1. e4 {[%emt 0:02:04]} c5 {[%emt 0:00:00]} 2. Nf3 {[%emt 0:00:10]} d6 {[%emt 0:00:03]} 3. d4 {[%emt 0:00:09]} cxd4 {[%emt 0:00:14]} 4. Nxd4 {[%emt 0:00:08]} Nf6 {[%emt 0:00:11]} 5. Nc3 {[%emt 0:00:10]} a6 {[%emt 0:00:15]} 6. h3 {[%emt 0:00:10]} e6 {[%emt 0:00:34]} 7. g4 {[%emt 0:00:13]} Be7 {[%emt 0:00:30]} 8. Bg2 {[%emt 0:01:04]} Nfd7 {[%emt 0:02:07]} 9. Nce2 {[%emt 0:00:44]} Nc6 {[%emt 0:03:42]} 10. c3 {[%emt 0:00:15]} Qc7 {[%emt 0:04:32]} 11. O-O {[%emt 0:00:29]} O-O {[%emt 0:02:24]} 12. f4 {[%emt 0:04:46]} Rb8 {[%emt 0:12:35]} 13. g5 {[%emt 0:05:33]} Re8 {[%emt 0:08:19]} 14. f5 {[%emt 0:06:51]} e5 {[%emt 0:01:47]} 15. Nc2 {[%emt 0:00:17]} b5 {[%emt 0:02:07]} 16. Ng3 {[%emt 0:02:16]} Bf8 {[%emt 0:00:55]} 17. Ne3 {[%emt 0:01:32]} Nb6 {[%emt 0:00:19]} 18. b3 {[%emt 0:09:15]} b4 {[%emt 0:08:59]} 19. c4 {[%emt 0:01:10]} a5 {[%emt 0:01:52]} 20. f6 {[%emt 0:11:32]} g6 {[%emt 0:00:36]} 21. Nd5 {[%emt 0:00:16]} Nxd5 {[%emt 0:01:09]} 22. exd5 {[%emt 0:00:25]} Nd8 {[%emt 0:03:15]} 23. Be3 {[%emt 0:00:25]} Nb7 {[%emt 0:00:22]} 24. h4 {[%emt 0:02:47]} Nc5 {[%emt 0:05:04]} 25. h5 {[%emt 0:01:45]} a4 {[%emt 0:03:01]} 26. hxg6 {[%emt 0:01:42]} hxg6 {[%emt 0:00:10]} 27. Ne4 {[%emt 0:02:38]} Qd7 {[%emt 0:18:42]} 28. Qc2 {[%emt 0:15:21]} Qg4 {[%emt 0:02:02]} 29. Nxc5 {[%emt 0:01:01]} dxc5 {[%emt 0:00:10]} 30. Qxg6+ {[%emt 0:00:20]} 1-0

[Event "46th Roda Open 2019"]
[Site "La Roda"]
[Date "2019.04.20"]
[Round "6.2"]
[White "Ibarra Jerez, Jose Carlos"]
[Black "Predke, Alexandr"]
[Result "1/2-1/2"]
[ECO "A05"]
[WhiteElo "2542"]
[BlackElo "2619"]
[Annotator "RC"]
[PlyCount "40"]
[EventDate "2019.04.17"]
[EventType "swiss"]
[EventCountry "ESP"]
[SourceTitle "playchess.com"]
[Source "ChessBase"]
[SourceQuality "1"]
[TimeControl "5400+30"]

1. Nf3 {[%emt 0:00:44]} Nf6 {[%emt 0:02:38]} 2. g3 {[%emt 0:00:29]} b6 {[%emt 0:00:06]} 3. Bg2 {[%emt 0:01:18]} Bb7 {[%emt 0:00:05]} 4. O-O {[%emt 0:00:44]} c5 {[%emt 0:01:07]} 5. c4 {[%emt 0:00:45]} g6 {[%emt 0:02:54]} 6. b3 {[%emt 0:04:48]} Bg7 {[%emt 0:00:22]} 7. Bb2 {[%emt 0:01:56]} O-O {[%emt 0:01:21]} 8. e3 {[%emt 0:09:46]} d5 {[%emt 0:03:10]} 9. d3 {[%emt 0:05:25]} Nc6 {[%emt 0:04:40]} 10. a3 {[%emt 0:05:20]} Re8 {[%emt 0:04:36]} 11. Ne5 {[%emt 0:10:39]} Qc7 {[%emt 0:15:52]} 12. Nxc6 {[%emt 0:08:12]} Bxc6 {[%emt 0:00:22]} 13. cxd5 {[%emt 0:02:13]} Bxd5 {[%emt 0:01:16]} 14. Bxd5 {[%emt 0:02:08]} Nxd5 {[%emt 0:00:11]} 15. Bxg7 {[%emt 0:00:07]} Kxg7 {[%emt 0:00:03]} 16. Qc2 {[%emt 0:01:25]} Rad8 {[%emt 0:04:50]} 17. Nc3 {[%emt 0:03:41]} Qe5 {[%emt 0:05:22]} 18. Rac1 {[%emt 0:02:24]} Rd7 {[%emt 0:04:11]} 19. Rfd1 {[%emt 0:06:46]} Red8 {[%emt 0:07:58]} 20. Nxd5 {[%emt 0:04:42]} Rxd5 {[%emt 0:02:44]} 1/2-1/2

[Event "46th Roda Open 2019"]
[Site "La Roda"]
[Date "2019.04.20"]
[Round "7.3"]
[White "Predke, Alexandr"]
[Black "Mogranzini, Roberto"]
[Result "1-0"]
[ECO "C41"]
[WhiteElo "2619"]
[BlackElo "2449"]
[Annotator "RC"]
[PlyCount "91"]
[EventDate "2019.04.17"]
[EventType "swiss"]
[EventCountry "ESP"]
[SourceTitle "playchess.com"]
[Source "ChessBase"]
[SourceQuality "1"]
[TimeControl "5400+30"]

1. e4 {[%emt 0:01:20]} d6 {[%emt 0:00:00]} 2. d4 {[%emt 0:00:16]} Nf6 {[%emt 0:00:00]} 3. Nc3 {[%emt 0:00:56]} e5 {[%emt 0:00:00]} 4. Nf3 {[%emt 0:01:28]} Nbd7 {[%emt 0:00:06]} 5. Bc4 {[%emt 0:00:24]} Be7 {[%emt 0:01:08]} 6. O-O {[%emt 0:00:17]} O-O {[%emt 0:00:05]} 7. Re1 {[%emt 0:00:38]} exd4 {[%emt 0:01:09]} 8. Qxd4 {[%emt 0:04:07]} Nb6 {[%emt 0:00:11]} 9. Be2 {[%emt 0:07:28]} c5 {[%emt 0:05:07]} 10. Qd3 {[%emt 0:12:38]} d5 {[%emt 0:02:08]} 11. exd5 {[%emt 0:04:55]} Nbxd5 {[%emt 0:02:36]} 12. Nxd5 {[%emt 0:02:33]} Nxd5 {[%emt 0:01:01]} 13. Rd1 {[%emt 0:05:18]} Nf6 {[%emt 0:16:06]} 14. Bf4 {[%emt 0:10:41]} Qxd3 {[%emt 0:01:46]} 15. Bxd3 {[%emt 0:00:18]} Bg4 {[%emt 0:03:48]} 16. Re1 {[%emt 0:01:09]} Nd5 {[%emt 0:01:41]} 17. Bc4 {[%emt 0:07:18]} Nxf4 {[%emt 0:03:06]} 18. Rxe7 {[%emt 0:00:03]} Bxf3 {[%emt 0:03:38]} 19. gxf3 {[%emt 0:00:03]} Rab8 {[%emt 0:01:32]} 20. a4 {[%emt 0:02:01]} Ng6 {[%emt 0:00:49]} 21. Rc7 {[%emt 0:02:59]} Ne5 {[%emt 0:05:08]} 22. Bd5 {[%emt 0:02:05]} Rfc8 {[%emt 0:17:25]} 23. Rxc8+ {[%emt 0:05:03]} Rxc8 {[%emt 0:00:01]} 24. Re1 {[%emt 0:00:22]} Re8 {[%emt 0:01:01]} 25. Kf1 {[%emt 0:04:07]} Kf8 {[%emt 0:02:24]} 26. Bxb7 {[%emt 0:00:06]} Nc4 {[%emt 0:01:41]} 27. Rxe8+ {[%emt 0:01:17]} Kxe8 {[%emt 0:00:01]} 28. b3 {[%emt 0:00:20]} Nd6 {[%emt 0:00:15]} 29. Ba6 {[%emt 0:00:43]} g5 {[%emt 0:00:15]} 30. f4 {[%emt 0:04:40]} f6 {[%emt 0:02:51]} 31. Ke2 {[%emt 0:05:07]} Ke7 {[%emt 0:00:04]} 32. Ke3 {[%emt 0:01:01]} h6 {[%emt 0:00:10]} 33. c3 {[%emt 0:02:34]} Ke6 {[%emt 0:01:01]} 34. a5 {[%emt 0:02:27]} Kd5 {[%emt 0:01:12]} 35. Be2 {[%emt 0:00:50]} c4 {[%emt 0:07:20]} 36. Bf3+ {[%emt 0:05:21]} Ke6 {[%emt 0:00:27]} 37. b4 {[%emt 0:01:22]} Nb5 {[%emt 0:00:18]} 38. fxg5 {[%emt 0:02:43]} hxg5 {[%emt 0:00:02]} 39. Bc6 {[%emt 0:00:16]} Nxc3 {[%emt 0:00:58]} 40. Kd4 {[%emt 0:00:01]} Nd1 {[%emt 0:00:53]} 41. Bf3 {[%emt 0:01:58]} Nb2 {[%emt 0:08:01]} 42. Bd5+ {[%emt 0:01:02]} Kd6 {[%emt 0:00:03]} 43. Bxc4 {[%emt 0:00:02]} Nd1 {[%emt 0:00:28]} 44. f3 {[%emt 0:00:42]} Nf2 {[%emt 0:00:14]} 45. Ke3 {[%emt 0:00:44]} Nh3 {[%emt 0:00:03]} 46. Ke4 {[%emt 0:00:00] Kd5+} 1-0